[Event "Open Nuevo Centro. Jornada 1"]
[Site "Chess.com"]
[Date "2020.06.19"]
[Round "4"]
[White "Crevillen Abad, Clemente"]
[Black "Gerona Maura, Jesus"]
[Result "0-1"]
[WhiteElo "1773"]
[BlackElo "1533"]
[TimeControl "180+2"]
[EndTime "11:13:05 PDT"]
[Termination "Victoria de Retistente por abandono"]

1. e4 {[%clk 0:03:01.9]} 1... e5 {[%clk 0:03:00.8]} 2. Nf3 {[%clk 0:03:01]} 2...
Nc6 {[%clk 0:03:01.5]} 3. Bb5 {[%clk 0:03:01.5]} 3... a6 {[%clk 0:03:02.5]} 4.
Bxc6 {[%clk 0:03:02.4]} 4... dxc6 {[%clk 0:03:02.9]} 5. d4 {[%clk 0:03:03.9]}
5... exd4 {[%clk 0:03:02.2]} 6. Qxd4 {[%clk 0:03:05.5]} 6... Qxd4 {[%clk
0:03:02.6]} 7. Nxd4 {[%clk 0:03:07]} 7... Ne7 {[%clk 0:03:01.2]} 8. Be3 {[%clk
0:03:00.5]} 8... Bd7 {[%clk 0:03:02]} 9. Nc3 {[%clk 0:02:49.5]} 9... O-O-O
{[%clk 0:03:02.4]} 10. O-O-O {[%clk 0:02:50.2]} 10... Ng6 {[%clk 0:02:59.7]} 11.
f3 {[%clk 0:02:38.5]} 11... Bb4 {[%clk 0:02:59.7]} 12. Nce2 {[%clk 0:02:34.2]}
12... Rhe8 {[%clk 0:02:57.5]} 13. c3 {[%clk 0:02:32.7]} 13... Bc5 {[%clk
0:02:54.3]} 14. Nf4 {[%clk 0:02:19.3]} 14... f5 {[%clk 0:02:30.9]} 15. Nxg6
{[%clk 0:02:18.6]} 15... hxg6 {[%clk 0:02:30.3]} 16. Bg5 {[%clk 0:02:19.1]}
16... Be7 {[%clk 0:02:26.8]} 17. Bxe7 {[%clk 0:02:18.9]} 17... Rxe7 {[%clk
0:02:27.7]} 18. exf5 {[%clk 0:02:19.5]} 18... gxf5 {[%clk 0:02:27.6]} 19. Rde1
{[%clk 0:02:19.1]} 19... Rde8 {[%clk 0:02:25.9]} 20. Kd2 {[%clk 0:02:15.6]}
20... g6 {[%clk 0:02:14.8]} 21. Rxe7 {[%clk 0:02:15.3]} 21... Rxe7 {[%clk
0:02:15.3]} 22. Re1 {[%clk 0:02:16.5]} 22... Rh7 {[%clk 0:02:09.4]} 23. h3
{[%clk 0:02:16.8]} 23... c5 {[%clk 0:02:07]} 24. Nc2 {[%clk 0:02:10.7]} 24...
Bc6 {[%clk 0:02:02.5]} 25. Ke3 {[%clk 0:02:09.1]} 25... Rd7 {[%clk 0:01:47]} 26.
Re2 {[%clk 0:02:03.6]} 26... Bb5 {[%clk 0:01:42.3]} 27. Rf2 {[%clk 0:02:02.6]}
27... g5 {[%clk 0:01:33.9]} 28. f4 {[%clk 0:01:47.8]} 28... Rd3+ {[%clk
0:01:30.9]} 29. Ke2 {[%clk 0:01:45.5]} 29... Rxc3+ {[%clk 0:01:22.1]} 30. Kd2
{[%clk 0:01:46]} 30... Rd3+ {[%clk 0:01:22.6]} 31. Kc1 {[%clk 0:01:44.5]} 31...
gxf4 {[%clk 0:01:15.7]} 32. Rxf4 {[%clk 0:01:44.7]} 32... Bd7 {[%clk 0:01:14.1]}
33. Ne1 {[%clk 0:01:40.4]} 33... Re3 {[%clk 0:01:11.4]} 34. Rf2 {[%clk
0:01:36.5]} 34... Rxe1+ {[%clk 0:01:11.2]} 35. Kd2 {[%clk 0:01:36.1]} 35... Re5
{[%clk 0:01:11.5]} 0

[Event "Open Nuevo Centro. Jornada 1"]
[Site "Chess.com"]
[Date "2020.06.19"]
[Round "4"]
[White "G�mez Alonso, �scar"]
[Black "Yatseta Fernandez, Marc Kazymyr"]
[Result "1-0"]
[WhiteElo "1763"]
[BlackElo "1401"]
[TimeControl "180+2"]
[EndTime "11:13:05 PDT"]
[Termination "Victoria de osgo78 por abandono"]

1. d4 {[%clk 0:03:01.9]} 1... Nf6 {[%clk 0:03:00.2]} 2. c4 {[%clk 0:03:03.1]}
2... e5 {[%clk 0:03:01.3]} 3. dxe5 {[%clk 0:03:03.3]} 3... Ne4 {[%clk
0:03:02.2]} 4. Nf3 {[%clk 0:03:00.9]} 4... Nc6 {[%clk 0:03:01.2]} 5. a3 {[%clk
0:03:01.3]} 5... d6 {[%clk 0:02:58.6]} 6. Nbd2 {[%clk 0:02:56.5]} 6... Bf5
{[%clk 0:02:55.2]} 7. Nxe4 {[%clk 0:02:56.7]} 7... Bxe4 {[%clk 0:02:55]} 8. Bg5
{[%clk 0:02:53.1]} 8... Be7 {[%clk 0:02:52]} 9. Bxe7 {[%clk 0:02:52.2]} 9...
Qxe7 {[%clk 0:02:52.9]} 10. exd6 {[%clk 0:02:52.9]} 10... cxd6 {[%clk
0:02:46.3]} 11. Nd2 {[%clk 0:02:27.6]} 11... Bg6 {[%clk 0:02:40.3]} 12. e3
{[%clk 0:02:26.5]} 12... O-O {[%clk 0:02:39.7]} 13. Be2 {[%clk 0:02:26.4]} 13...
Rfe8 {[%clk 0:02:33.8]} 14. O-O {[%clk 0:02:27.2]} 14... Rac8 {[%clk 0:02:24.6]}
15. Nf3 {[%clk 0:02:26.5]} 15... Bh5 {[%clk 0:02:23.2]} 16. Qd2 {[%clk
0:02:00.9]} 16... d5 {[%clk 0:02:17.5]} 17. cxd5 {[%clk 0:01:59.7]} 17... Rcd8
{[%clk 0:02:17.6]} 18. Rfe1 {[%clk 0:01:46.7]} 18... Rd7 {[%clk 0:02:01.4]} 19.
Nd4 {[%clk 0:01:34.7]} 19... Rxd5 {[%clk 0:01:56.1]} 20. Nxc6 {[%clk 0:01:34]}
20... Rxd2 {[%clk 0:01:56.7]} 21. Nxe7+ {[%clk 0:01:34.5]} 21... Rxe7 {[%clk
0:01:58.6]} 22. Bxh5 {[%clk 0:01:35.1]} 22... Rxb2 {[%clk 0:01:52.6]} 23. Bf3
{[%clk 0:01:27.2]} 23... Rd7 {[%clk 0:01:47.7]} 24. Red1 {[%clk 0:01:26.6]}
24... Rxd1+ {[%clk 0:01:40.2]} 25. Rxd1 {[%clk 0:01:28.5]} 25... h6 {[%clk
0:01:41.1]} 26. h3 {[%clk 0:01:27.6]} 26... b6 {[%clk 0:01:37.4]} 27. Ra1 {[%clk
0:01:25]} 27... g6 {[%clk 0:01:34.8]} 28. a4 {[%clk 0:01:25.6]} 28... a5 {[%clk
0:01:34.1]} 29. Bc6 {[%clk 0:01:26.3]} 29... Kg7 {[%clk 0:01:34.4]} 30. Rd1
{[%clk 0:01:26]} 30... g5 {[%clk 0:01:31.1]} 31. Bb5 {[%clk 0:01:21.7]} 31...
Kg6 {[%clk 0:01:26.8]} 32. Rd6+ {[%clk 0:01:22.5]} 32... f6 {[%clk 0:01:27.6]}
33. Rxb6 {[%clk 0:01:23.1]} 33... h5 {[%clk 0:01:18.5]} 34. Be8+ {[%clk
0:01:23.5]} 1

[Event "Open Nuevo Centro. Jornada 1"]
[Site "Chess.com"]
[Date "2020.06.19"]
[Round "4"]
[White "Aymerich Rosell, Pablo"]
[Black "Bendayan Claros, Aaron"]
[Result "1-0"]
[WhiteElo "2011"]
[BlackElo "1645"]
[TimeControl "180+2"]
[EndTime "11:13:12 PDT"]
[Termination "Victoria de jasikevic por abandono"]

1. e4 {[%clk 0:03:01.9]} 1... c6 {[%clk 0:03:00.8]} 2. Nc3 {[%clk 0:03:00.3]}
2... d5 {[%clk 0:03:01.9]} 3. Nf3 {[%clk 0:03:01.2]} 3... dxe4 {[%clk
0:03:02.7]} 4. Nxe4 {[%clk 0:03:01.8]} 4... Nf6 {[%clk 0:03:03.9]} 5. Qe2 {[%clk
0:03:02.2]} 5... Nxe4 {[%clk 0:03:03.4]} 6. Qxe4 {[%clk 0:03:02.3]} 6... Qd5
{[%clk 0:03:04.8]} 7. Qh4 {[%clk 0:03:02.4]} 7... Nd7 {[%clk 0:03:02.6]} 8. Bc4
{[%clk 0:02:59.1]} 8... Qa5 {[%clk 0:02:55.9]} 9. O-O {[%clk 0:02:47.2]} 9...
Nf6 {[%clk 0:02:56.4]} 10. Re1 {[%clk 0:02:41.8]} 10... Bf5 {[%clk 0:02:49.5]}
11. Re5 {[%clk 0:02:32]} 11... Qc7 {[%clk 0:02:10.4]} 12. Rxf5 {[%clk
0:02:28.6]} 12... e6 {[%clk 0:02:10.9]} 13. Re5 {[%clk 0:02:01.2]} 13... Be7
{[%clk 0:02:11.4]} 14. Re1 {[%clk 0:01:51.2]} 14... O-O-O {[%clk 0:02:10.7]} 15.
d3 {[%clk 0:01:48]} 15... h6 {[%clk 0:02:10.3]} 16. Qf4 {[%clk 0:01:37]} 16...
Bd6 {[%clk 0:02:10.2]} 17. Qe3 {[%clk 0:01:32.6]} 17... Ng4 {[%clk 0:02:06.4]}
18. Qxa7 {[%clk 0:01:27.8]} 18... Bxh2+ {[%clk 0:02:03.7]} 19. Kh1 {[%clk
0:01:21.2]} 19... Bd6 {[%clk 0:02:00.2]} 20. Re2 {[%clk 0:00:58.4]} 20... h5
{[%clk 0:01:55.5]} 21. Bd2 {[%clk 0:00:50.6]} 21... b5 {[%clk 0:01:30.5]} 22.
Qxc7+ {[%clk 0:00:43.2]} 22... Bxc7 {[%clk 0:01:32.4]} 23. Bb3 {[%clk
0:00:41.9]} 23... h4 {[%clk 0:01:33.3]} 24. a4 {[%clk 0:00:34.2]} 24... bxa4
{[%clk 0:01:33.8]} 25. Rxa4 {[%clk 0:00:33.9]} 25... Kb7 {[%clk 0:01:33]} 26.
Rxg4 {[%clk 0:00:30.2]} 1

[Event "Open Nuevo Centro. Jornada 1"]
[Site "Chess.com"]
[Date "2020.06.19"]
[Round "4"]
[White "Cebolla Ruiz, David"]
[Black "R�os Valle, Daniel "]
[Result "1-0"]
[WhiteElo "1745"]
[BlackElo "1188"]
[TimeControl "180+2"]
[EndTime "11:13:21 PDT"]
[Termination "Victoria de Dabelcebolla por abandono"]

1. e4 {[%clk 0:03:01.9]} 1... c5 {[%clk 0:03:00.5]} 2. Nf3 {[%clk 0:03:01.8]}
2... Nc6 {[%clk 0:02:58.6]} 3. d4 {[%clk 0:03:02.3]} 3... cxd4 {[%clk
0:02:59.3]} 4. Nxd4 {[%clk 0:03:02.9]} 4... Nf6 {[%clk 0:03:00.5]} 5. Nc3 {[%clk
0:03:03.4]} 5... d6 {[%clk 0:03:01.9]} 6. Bc4 {[%clk 0:02:59.2]} 6... e6 {[%clk
0:03:01.3]} 7. Be3 {[%clk 0:02:59.2]} 7... Bd7 {[%clk 0:02:58.2]} 8. f3 {[%clk
0:02:55.9]} 8... a6 {[%clk 0:02:56.2]} 9. Qd2 {[%clk 0:02:56.1]} 9... Be7 {[%clk
0:02:56.2]} 10. O-O-O {[%clk 0:02:56]} 10... Rc8 {[%clk 0:02:55.8]} 11. Bb3
{[%clk 0:02:56.4]} 11... O-O {[%clk 0:02:53.2]} 12. h4 {[%clk 0:02:56.7]} 12...
b5 {[%clk 0:02:50.4]} 13. h5 {[%clk 0:02:56.3]} 13... b4 {[%clk 0:02:49.4]} 14.
Na4 {[%clk 0:02:53.1]} 14... Qc7 {[%clk 0:02:39.8]} 15. Nxc6 {[%clk 0:02:47.9]}
15... Bxc6 {[%clk 0:02:33.6]} 16. Qxb4 {[%clk 0:02:36.4]} 16... d5 {[%clk
0:02:30.8]} 17. Bc5 {[%clk 0:02:28.3]} 17... Bxc5 {[%clk 0:02:28]} 18. Qxc5
{[%clk 0:02:28.8]} 18... dxe4 {[%clk 0:02:28.6]} 19. fxe4 {[%clk 0:01:51.5]}
19... Bxe4 {[%clk 0:02:27.2]} 20. Qxc7 {[%clk 0:01:51.5]} 20... Rxc7 {[%clk
0:02:25.9]} 21. Nc3 {[%clk 0:01:52.3]} 21... Bxg2 {[%clk 0:02:19.7]} 22. Rhg1
{[%clk 0:01:52.8]} 22... Bf3 {[%clk 0:02:17.6]} 23. Rdf1 {[%clk 0:01:49.5]}
23... Bxh5 {[%clk 0:02:17.6]} 24. Rxf6 {[%clk 0:01:47.5]} 24... Rc5 {[%clk
0:01:50.1]} 25. Rf2 {[%clk 0:01:29.3]} 25... Rd8 {[%clk 0:01:38]} 26. Rd2 {[%clk
0:01:24.9]} 26... Rxd2 {[%clk 0:01:27.7]} 27. Kxd2 {[%clk 0:01:25.6]} 27... Rf5
{[%clk 0:01:25.4]} 28. Ne4 {[%clk 0:00:56.1]} 28... Rd5+ {[%clk 0:01:07.4]} 29.
Bxd5 {[%clk 0:00:54.2]} 1

[Event "Open Nuevo Centro. Jornada 1"]
[Site "Chess.com"]
[Date "2020.06.19"]
[Round "4"]
[White "Perrot, Fabien "]
[Black "Beneyto de Ramon, Guillermo"]
[Result "0-1"]
[WhiteElo "978"]
[BlackElo "1489"]
[TimeControl "180+2"]
[EndTime "11:13:24 PDT"]
[Termination "Victoria de GUILLETE por abandono"]

1. d4 {[%clk 0:03:01.9]} 1... d5 {[%clk 0:03:00.4]} 2. Nf3 {[%clk 0:03:00.5]}
2... e6 {[%clk 0:03:01]} 3. c4 {[%clk 0:02:58.2]} 3... c6 {[%clk 0:03:02.1]} 4.
Bf4 {[%clk 0:02:56.3]} 4... dxc4 {[%clk 0:03:00.5]} 5. e3 {[%clk 0:02:57.3]}
5... b5 {[%clk 0:03:00.4]} 6. a4 {[%clk 0:02:54.5]} 6... Bb4+ {[%clk 0:02:54.7]}
7. Nc3 {[%clk 0:02:47.5]} 7... Nf6 {[%clk 0:02:55.2]} 8. Be2 {[%clk 0:02:35]}
8... Nd5 {[%clk 0:02:54.7]} 9. Bg3 {[%clk 0:02:26.3]} 9... Nxc3 {[%clk
0:02:54.3]} 10. bxc3 {[%clk 0:02:28]} 10... Bxc3+ {[%clk 0:02:55.2]} 11. Nd2
{[%clk 0:02:25.4]} 11... Bxa1 {[%clk 0:02:54.9]} 12. Qxa1 {[%clk 0:02:24.5]}
12... Nd7 {[%clk 0:02:50.3]} 13. axb5 {[%clk 0:02:22.7]} 13... cxb5 {[%clk
0:02:49.9]} 14. O-O {[%clk 0:02:14.9]} 14... O-O {[%clk 0:02:49.5]} 15. Rb1
{[%clk 0:01:31.3]} 15... Qb6 {[%clk 0:02:43.2]} 16. Ne4 {[%clk 0:01:21.2]} 16...
Qc6 {[%clk 0:02:33.9]} 17. Bd6 {[%clk 0:01:11.1]} 17... Re8 {[%clk 0:02:15.3]}
18. Ba3 {[%clk 0:01:05.1]} 18... Qxe4 {[%clk 0:02:12.1]} 19. Bf3 {[%clk
0:00:57.4]} 19... Qg6 {[%clk 0:02:05.1]} 20. Bxa8 {[%clk 0:00:57.5]} 20... a6
{[%clk 0:02:03.5]} 21. Bc6 {[%clk 0:00:36]} 21... Rd8 {[%clk 0:01:55.7]} 22. Be7
{[%clk 0:00:30.2]} 22... Re8 {[%clk 0:01:53.9]} 23. Bh4 {[%clk 0:00:22.8]} 23...
e5 {[%clk 0:01:38.5]} 24. Bxd7 {[%clk 0:00:18.7]} 24... Bxd7 {[%clk 0:01:39.2]}
25. Qxa6 {[%clk 0:00:20.1]} 25... Qxa6 {[%clk 0:01:36.2]} 0

[Event "Open Nuevo Centro. Jornada 1"]
[Site "Chess.com"]
[Date "2020.06.19"]
[Round "4"]
[White "Blanco Solaz, Ram�n"]
[Black "Campos Gambuti, Luis Mar�a"]
[Result "0-1"]
[WhiteElo "1981"]
[BlackElo "2326"]
[TimeControl "180+2"]
[EndTime "11:13:32 PDT"]
[Termination "Victoria de Tangalangafacv por abandono"]

1. Nf3 {[%clk 0:03:01.9]} 1... d5 {[%clk 0:02:59.9]} 2. d4 {[%clk 0:03:02.8]}
2... Nf6 {[%clk 0:03:00.3]} 3. c4 {[%clk 0:03:03.9]} 3... dxc4 {[%clk
0:03:01.8]} 4. e3 {[%clk 0:03:01.9]} 4... e6 {[%clk 0:03:02.3]} 5. Bxc4 {[%clk
0:03:02.4]} 5... a6 {[%clk 0:03:03.9]} 6. O-O {[%clk 0:03:02.1]} 6... b5 {[%clk
0:03:05.1]} 7. Bb3 {[%clk 0:03:02.8]} 7... Bb7 {[%clk 0:03:06.5]} 8. Qe2 {[%clk
0:03:00.6]} 8... Nbd7 {[%clk 0:03:06.3]} 9. Rd1 {[%clk 0:02:59.6]} 9... c5
{[%clk 0:03:05.9]} 10. dxc5 {[%clk 0:02:57.5]} 10... Bxc5 {[%clk 0:03:07.8]} 11.
Nc3 {[%clk 0:02:58.1]} 11... O-O {[%clk 0:03:03.1]} 12. Ne5 {[%clk 0:02:46.3]}
12... Qc7 {[%clk 0:02:58.9]} 13. Nxd7 {[%clk 0:02:44.5]} 13... Nxd7 {[%clk
0:02:59.3]} 14. e4 {[%clk 0:02:29.7]} 14... Nf6 {[%clk 0:02:43.7]} 15. Bg5
{[%clk 0:02:25.2]} 15... Qe5 {[%clk 0:02:42.3]} 16. Bxf6 {[%clk 0:02:19]} 16...
gxf6 {[%clk 0:02:31.9]} 17. Rd3 {[%clk 0:02:01.4]} 17... Kh8 {[%clk 0:02:22.1]}
18. Rad1 {[%clk 0:01:54.9]} 18... Rg8 {[%clk 0:02:20.7]} 19. Rh3 {[%clk
0:01:24.4]} 19... Bc6 {[%clk 0:01:52.1]} 20. a3 {[%clk 0:01:19.7]} 20... Rg5
{[%clk 0:01:50.7]} 21. Kf1 {[%clk 0:01:18.5]} 21... Rag8 {[%clk 0:01:49.1]} 22.
g3 {[%clk 0:01:19.3]} 22... Rg4 {[%clk 0:01:28]} 23. Rd8 {[%clk 0:01:07.4]}
23... Rg7 {[%clk 0:00:45.7]} 24. f4 {[%clk 0:01:03.5]} 24... Qxf4+ {[%clk
0:00:43.5]} 25. Ke1 {[%clk 0:00:55.4]} 0

[Event "Open Nuevo Centro. Jornada 1"]
[Site "Chess.com"]
[Date "2020.06.19"]
[Round "4"]
[White "Cin� Asensio, Luca "]
[Black "Gutierrez Lacambra, Jose Antonio"]
[Result "0-1"]
[WhiteElo "397"]
[BlackElo "1235"]
[TimeControl "180+2"]
[EndTime "11:13:52 PDT"]
[Termination "Victoria de sygm2012 por jaque mate"]

1. e4 {[%clk 0:03:01.9]} 1... c5 {[%clk 0:03:00.2]} 2. Bc4 {[%clk 0:03:02.2]}
2... e6 {[%clk 0:03:01.1]} 3. d3 {[%clk 0:03:00.5]} 3... d5 {[%clk 0:03:00.9]}
4. exd5 {[%clk 0:03:00.5]} 4... exd5 {[%clk 0:03:01.8]} 5. Bb3 {[%clk
0:03:01.2]} 5... Nc6 {[%clk 0:03:02.4]} 6. Bd2 {[%clk 0:02:58.3]} 6... Nf6
{[%clk 0:03:03.2]} 7. Nf3 {[%clk 0:02:57.8]} 7... Bd6 {[%clk 0:03:03.7]} 8. O-O
{[%clk 0:02:57.9]} 8... O-O {[%clk 0:03:04.8]} 9. Nc3 {[%clk 0:02:51.6]} 9...
Bg4 {[%clk 0:03:00.1]} 10. Nxd5 {[%clk 0:02:51]} 10... Nxd5 {[%clk 0:02:56.8]}
11. Bxd5 {[%clk 0:02:51.1]} 11... Bxh2+ {[%clk 0:02:54.7]} 12. Kxh2 {[%clk
0:02:48.8]} 12... Qxd5 {[%clk 0:02:55.7]} 13. c4 {[%clk 0:02:44.5]} 13... Qxd3
{[%clk 0:02:50.1]} 14. Qc1 {[%clk 0:02:39.5]} 14... Bxf3 {[%clk 0:02:46.8]} 15.
gxf3 {[%clk 0:02:38.2]} 15... Qxf3 {[%clk 0:02:48.7]} 16. Rg1 {[%clk 0:02:35]}
16... Kh8 {[%clk 0:02:39.4]} 17. Bh6 {[%clk 0:02:34]} 17... Qxf2+ {[%clk
0:02:33.7]} 18. Rg2 {[%clk 0:02:31.1]} 18... Qh4+ {[%clk 0:02:34.3]} 19. Kg1
{[%clk 0:02:27.1]} 19... Qxh6 {[%clk 0:02:33.4]} 20. Qxh6 {[%clk 0:02:27.2]}
20... gxh6 {[%clk 0:02:34.5]} 21. Kf2 {[%clk 0:02:23.3]} 21... Rg8 {[%clk
0:02:35]} 22. Rag1 {[%clk 0:02:22.2]} 22... Nd4 {[%clk 0:02:32.5]} 23. Ke3
{[%clk 0:02:20.4]} 23... Rxg2 {[%clk 0:02:31.9]} 24. Rxg2 {[%clk 0:02:20.1]}
24... Rg8 {[%clk 0:02:32.5]} 25. Rh2 {[%clk 0:02:17.9]} 25... Rg6 {[%clk
0:02:32.2]} 26. Rh4 {[%clk 0:02:16.4]} 26... Kg7 {[%clk 0:02:31.6]} 27. a3
{[%clk 0:02:07]} 27... Re6+ {[%clk 0:02:31.6]} 28. Kf4 {[%clk 0:02:05.3]} 28...
f5 {[%clk 0:02:25.4]} 29. Kg3 {[%clk 0:02:02.2]} 29... Re4 {[%clk 0:02:17.5]}
30. Kf2 {[%clk 0:01:54.4]} 30... Re2+ {[%clk 0:02:12.3]} 31. Kg3 {[%clk
0:01:54]} 31... Re4 {[%clk 0:02:10.3]} 32. Rxe4 {[%clk 0:01:49.5]} 32... fxe4
{[%clk 0:02:10.1]} 33. Kf4 {[%clk 0:01:49.6]} 33... Kf6 {[%clk 0:02:05.5]} 34.
Kxe4 {[%clk 0:01:49.5]} 34... Kg5 {[%clk 0:02:06.1]} 35. Ke3 {[%clk 0:01:48.3]}
35... Kg4 {[%clk 0:02:06.4]} 36. Kf2 {[%clk 0:01:49.2]} 36... h5 {[%clk
0:02:05.4]} 37. Kg2 {[%clk 0:01:49.9]} 37... h4 {[%clk 0:02:06.1]} 38. Kh2
{[%clk 0:01:50.8]} 38... h6 {[%clk 0:02:07]} 39. Kg2 {[%clk 0:01:51.1]} 39... h5
{[%clk 0:02:08.3]} 40. Kh2 {[%clk 0:01:51.4]} 40... Nf3+ {[%clk 0:02:09.7]} 41.
Kg2 {[%clk 0:01:51.8]} 41... h3+ {[%clk 0:02:09.7]} 42. Kh1 {[%clk 0:01:52.6]}
42... Kg3 {[%clk 0:01:59.7]} 43. b4 {[%clk 0:01:46.4]} 43... cxb4 {[%clk
0:01:55.4]} 44. axb4 {[%clk 0:01:47]} 44... b6 {[%clk 0:01:53.4]} 45. b5 {[%clk
0:01:47.4]} 45... Nd2 {[%clk 0:01:51.9]} 46. c5 {[%clk 0:01:43.5]} 46... bxc5
{[%clk 0:01:52.6]} 47. b6 {[%clk 0:01:43.7]} 47... axb6 {[%clk 0:01:53.3]} 48.
Kg1 {[%clk 0:01:44.5]} 48... c4 {[%clk 0:01:54]} 49. Kh1 {[%clk 0:01:44.5]}
49... c3 {[%clk 0:01:55]} 50. Kg1 {[%clk 0:01:45.3]} 50... b5 {[%clk 0:01:55.9]}
51. Kh1 {[%clk 0:01:45.9]} 51... b4 {[%clk 0:01:56.8]} 52. Kg1 {[%clk
0:01:46.5]} 52... b3 {[%clk 0:01:57.7]} 53. Kh1 {[%clk 0:01:47]} 53... c2 {[%clk
0:01:58.8]} 54. Kg1 {[%clk 0:01:47.5]} 54... b2 {[%clk 0:01:59.6]} 55. Kh1
{[%clk 0:01:48.2]} 55... h4 {[%clk 0:02:00.5]} 56. Kg1 {[%clk 0:01:48.5]} 56...
c1=Q# {[%clk 0:02:01.3]} 0

[Event "Open Nuevo Centro. Jornada 1"]
[Site "Chess.com"]
[Date "2020.06.19"]
[Round "4"]
[White "Gil Lopez, Alejandro"]
[Black "Garcia, Jhoel"]
[Result "0-1"]
[WhiteElo "2037"]
[BlackElo "2327"]
[TimeControl "180+2"]
[EndTime "11:13:54 PDT"]
[Termination "Victoria de shoels por jaque mate"]

1. e4 {[%clk 0:03:01.9]} 1... c5 {[%clk 0:03:00.6]} 2. Nf3 {[%clk 0:03:03.1]}
2... Nc6 {[%clk 0:03:01.5]} 3. Bc4 {[%clk 0:03:04.5]} 3... e6 {[%clk 0:03:02.3]}
4. O-O {[%clk 0:03:05]} 4... Nf6 {[%clk 0:03:03.6]} 5. Nc3 {[%clk 0:03:05.2]}
5... Nxe4 {[%clk 0:03:02.5]} 6. Nxe4 {[%clk 0:03:05.3]} 6... d5 {[%clk 0:03:04]}
7. Bxd5 {[%clk 0:02:59.2]} 7... exd5 {[%clk 0:03:04.8]} 8. Ng3 {[%clk
0:03:00.4]} 8... Be7 {[%clk 0:03:05.9]} 9. d4 {[%clk 0:03:00.5]} 9... O-O {[%clk
0:03:00.3]} 10. h3 {[%clk 0:02:59.7]} 10... Bd6 {[%clk 0:02:47]} 11. Ne2 {[%clk
0:02:56.1]} 11... c4 {[%clk 0:02:44.2]} 12. Nf4 {[%clk 0:02:52.8]} 12... Bc7
{[%clk 0:02:09]} 13. Re1 {[%clk 0:02:48.7]} 13... Bf5 {[%clk 0:02:06.4]} 14. Ne5
{[%clk 0:02:37]} 14... Nb4 {[%clk 0:01:54.2]} 15. Re2 {[%clk 0:02:24.3]} 15...
Qd6 {[%clk 0:01:30.1]} 16. a3 {[%clk 0:02:17.1]} 16... Nc6 {[%clk 0:01:24.8]}
17. b3 {[%clk 0:01:52.5]} 17... Rfe8 {[%clk 0:01:15.3]} 18. bxc4 {[%clk
0:01:40.3]} 18... Nxd4 {[%clk 0:01:15.5]} 19. Qxd4 {[%clk 0:01:39.7]} 19... Rxe5
{[%clk 0:01:16.5]} 20. Rxe5 {[%clk 0:01:22.5]} 20... Qxe5 {[%clk 0:01:16.8]} 21.
Qxd5 {[%clk 0:01:23.8]} 21... Qxa1 {[%clk 0:01:15.9]} 22. Ne2 {[%clk 0:00:55.5]}
22... Qe5 {[%clk 0:01:04.4]} 23. Qf3 {[%clk 0:00:55.3]} 23... Qe4 {[%clk
0:00:56.6]} 24. Qh5 {[%clk 0:00:51.3]} 24... g6 {[%clk 0:00:56.3]} 25. Qh6
{[%clk 0:00:51.7]} 25... Qxe2 {[%clk 0:00:55.6]} 26. g4 {[%clk 0:00:51.7]} 26...
Qe1+ {[%clk 0:00:52.7]} 27. Kg2 {[%clk 0:00:52.8]} 27... Be4+ {[%clk 0:00:54.2]}
28. f3 {[%clk 0:00:50.1]} 28... Qe2+ {[%clk 0:00:53]} 29. Kg1 {[%clk 0:00:50.8]}
29... Bxf3 {[%clk 0:00:52.6]} 30. Bb2 {[%clk 0:00:46.2]} 30... Qg2# {[%clk
0:00:53]} 0

[Event "Open Nuevo Centro. Jornada 1"]
[Site "Chess.com"]
[Date "2020.06.19"]
[Round "4"]
[White "Aguado, Pablo Luis"]
[Black "Grigorev, Artur "]
[Result "1-0"]
[WhiteElo "1246"]
[BlackElo "860"]
[TimeControl "180+2"]
[EndTime "11:13:54 PDT"]
[Termination "Victoria de PLAD_2006 por jaque mate"]

1. d4 {[%clk 0:03:01.9]} 1... d5 {[%clk 0:02:59.7]} 2. c4 {[%clk 0:03:01.4]}
2... dxc4 {[%clk 0:02:59]} 3. e3 {[%clk 0:03:02.1]} 3... Qd5 {[%clk 0:02:41.9]}
4. Nc3 {[%clk 0:03:01.2]} 4... Qc6 {[%clk 0:02:38.5]} 5. Nf3 {[%clk 0:02:58.1]}
5... Bg4 {[%clk 0:02:36.7]} 6. Be2 {[%clk 0:02:49.8]} 6... e6 {[%clk 0:02:33.7]}
7. O-O {[%clk 0:02:49.5]} 7... Nd7 {[%clk 0:02:16.6]} 8. e4 {[%clk 0:02:39]}
8... Bd6 {[%clk 0:02:06.8]} 9. e5 {[%clk 0:02:38.1]} 9... Bb4 {[%clk 0:02:01.5]}
10. h3 {[%clk 0:02:16.8]} 10... Bxf3 {[%clk 0:02:00.2]} 11. Bxf3 {[%clk
0:02:17.4]} 11... Qb6 {[%clk 0:01:52.7]} 12. Bf4 {[%clk 0:01:56.5]} 12... Bxc3
{[%clk 0:01:44.7]} 13. bxc3 {[%clk 0:01:56]} 13... Ne7 {[%clk 0:01:43.9]} 14.
Rb1 {[%clk 0:01:56.2]} 14... Qa5 {[%clk 0:01:41.6]} 15. Qc2 {[%clk 0:01:47.8]}
15... O-O-O {[%clk 0:01:32.8]} 16. Bxb7+ {[%clk 0:01:45.5]} 16... Kb8 {[%clk
0:01:21.9]} 17. Qb2 {[%clk 0:01:46]} 17... Qb6 {[%clk 0:01:18]} 18. Qc2 {[%clk
0:01:44.7]} 18... Qa5 {[%clk 0:01:11.3]} 19. Ba6+ {[%clk 0:01:31.2]} 19... Ka8
{[%clk 0:01:09.2]} 20. Bxc4 {[%clk 0:01:29.1]} 20... Nb6 {[%clk 0:00:48.5]} 21.
Bd3 {[%clk 0:01:25.4]} 21... Ned5 {[%clk 0:00:45.4]} 22. Be4 {[%clk 0:01:25.7]}
22... c6 {[%clk 0:00:36.2]} 23. Bh2 {[%clk 0:01:18.2]} 23... f5 {[%clk
0:00:12.9]} 24. exf6 {[%clk 0:01:17.9]} 24... gxf6 {[%clk 0:00:13]} 25. c4
{[%clk 0:01:18.1]} 25... Nb4 {[%clk 0:00:11.1]} 26. Rxb4 {[%clk 0:01:14.8]}
26... Qxb4 {[%clk 0:00:10.1]} 27. Bxc6# {[%clk 0:01:15.8]} 1